bitfinex-derivatives/quotes_ETHF0:USTF0_20250828
["timestamp","ask_amount","ask_price","bid_price","bid_amount"]
[1756407969804,0.0266,4478.9,4478.8,0.7098]
[1756407970300,0.0433,4478.9,4478.8,0.7098]
[1756407971000,3.2078,4479.3,4479.2,0.7098]
[1756407971206,0.0266,4479.9,4479.8,0.68845]
[1756407971700,0.0367,4479.3,4479.2,0.82491]
[1756407971901,0.0226,4479.3,4479.2,1.11161]
[1756407972101,0.0367,4479.7,4479.6,0.40178]
[1756407972500,0.0367,4479.7,4479.6,0.82488]
[1756407973210,0.0226,4479.7,4478.7,1.00465]
[1756407973403,0.0226,4479.5,4479.4,0.40179]
[1756407973708,0.0226,4479.5,4479.4,1.11159]
[1756407975014,3.2078,4480.1,4479.4,1.11159]
[1756407975015,3.2078,4480.1,4480.0,0.40174]
[1756407975401,3.2078,4480.1,4480.0,1.11154]
[1756407975804,0.0367,4480.4,4480.3,0.40171]
[1756407975998,0.0226,4480.4,4480.3,0.7098]
[1756407976204,3.2078,4480.6,4480.4,0.4231]
[1756407976409,3.2445,4480.6,4480.5,0.7098]
[1756407977205,3.2304,4480.6,4480.5,0.7098]
[1756407977802,3.2445,4480.6,4480.5,0.7098]
[1756407978415,0.0367,4480.4,4480.3,0.82481]
[1756407978615,0.0367,4480.4,4480.3,1.11151]
[1756407979610,0.0226,4479.9,4479.8,0.68846]
[1756407979809,0.0226,4479.9,4479.8,1.11156]
[1756407979810,0.0367,4479.9,4479.8,1.11156]
[1756407980217,0.0367,4479.9,4479.8,0.7098]
[1756407980415,0.0226,4479.9,4479.8,0.7098]
[1756407980710,0.0141,4480.2,4479.9,0.4231]
[1756407981016,0.0367,4480.2,4480.1,0.7098]
[1756407981813,3.2304,4480.6,4480.5,0.7098]
[1756407982113,3.2078,4480.6,4480.5,0.7098]
[1756407983016,3.2304,4480.6,4480.5,0.7098]
[1756407984215,0.40167,4480.9,4480.5,0.7098]
[1756407984216,3.2078,4481.1,4481.0,1.11145]
[1756407984417,3.2078,4481.6,4481.5,1.1114]
[1756407985314,3.2078,4482.2,4482.1,1.11135]
[1756407985520,3.2304,4482.2,4482.1,0.7098]
[1756407985715,0.0367,4482.0,4481.9,0.4231]
[1756407986117,0.0226,4482.0,4481.4,0.40161]
[1756407986420,0.0367,4481.7,4481.6,0.4231]
[1756407986913,0.0367,4481.4,4481.3,0.4231]
[1756407987114,0.40161,4481.5,4480.6,3.2078]
[1756407987115,0.43834,4481.1,4481.0,0.7098]
[1756407987718,0.43834,4481.1,4481.0,0.4231]
[1756407988021,0.0367,4480.8,4480.7,0.4231]
[1756407988210,0.0367,4480.8,4480.7,0.7098]
[1756407988411,3.2078,4481.2,4480.2,32.15]
[1756407988412,0.40168,4480.7,4480.4,0.4231]
[1756407988613,0.0367,4480.5,4480.4,0.4231]
[1756407988817,0.0367,4480.5,4480.4,0.7098]
[1756407989015,0.40167,4480.8,4480.5,0.4231]
[1756407989215,0.40167,4480.8,4480.6,0.4231]
[1756407989416,0.41577,4480.8,4480.5,0.40169]
[1756407989823,0.40168,4480.6,4480.5,0.2867]
[1756407990028,0.42428,4480.6,4480.5,0.2867]
[1756407990217,0.42428,4480.6,4480.4,0.4231]
[1756407990420,0.0367,4480.5,4480.4,0.4231]
[1756407990622,0.40168,4480.6,4480.2,32.15]
[1756407990623,0.0367,4480.3,4480.2,32.15]
[1756407990823,0.40177,4479.6,4479.5,0.2867]
[1756407991016,0.40177,4479.6,4479.5,0.7098]
[1756407991917,0.40176,4479.8,4479.5,0.7098]
[1756407992124,0.0367,4479.7,4479.6,0.4231]
[1756407992327,0.0367,4479.7,4479.2,0.4231]
[1756407992328,0.0141,4479.7,4479.2,0.4231]
[1756407992522,0.40181,4479.3,4479.2,0.2867]
[1756407992926,0.40181,4479.3,4479.2,0.7098]
[1756407993328,0.0367,4479.3,4479.2,0.7098]
[1756407993522,0.0226,4479.3,4479.2,0.7098]
[1756407993726,0.0367,4479.3,4479.2,0.7098]
[1756407993926,0.0226,4479.3,4479.2,0.7098]
[1756407995728,3.2078,4479.5,4479.2,1.11161]
[1756407995929,3.2078,4479.5,4479.2,0.68851]
[1756407996230,3.2078,4479.5,4479.4,0.6695]
[1756407997430,3.2103,4479.5,4479.4,0.6695]
[1756407999129,3.2119,4479.5,4479.4,0.6695]
[1756407999329,3.2119,4479.5,4479.4,0.8975]
[1756407999826,3.2119,4479.5,4479.4,0.228]
[1756408000032,3.2119,4479.5,4478.6,3.2078]
[1756408000033,0.0025,4479.2,4479.1,0.228]
[1756408000231,3.2094,4478.9,4478.8,0.394]
[1756408000432,0.40185,4478.8,4478.7,0.394]
[1756408000633,0.40435,4478.8,4478.7,0.394]
[1756408000834,0.40435,4478.8,4478.6,0.228]
[1756408001035,0.0016,4478.7,4478.6,0.228]
[1756408001333,0.0041,4478.7,4478.6,0.622]
[1756408001729,0.0025,4478.2,4478.1,0.67741]
[1756408001928,3.6138,4478.2,4478.1,0.5035]
[1756408002429,3.6138,4478.2,4478.1,0.8975]
[1756408002627,3.2119,4478.2,4478.1,0.8975]
[1756408003237,3.2119,4478.2,4478.1,0.228]
[1756408005133,0.40191,4478.1,4477.9,0.40192]
[1756408005333,0.0041,4478.0,4477.9,1.07142]
[1756408005728,0.0025,4478.0,4477.9,1.07142]
[1756408005934,3.60965,4478.8,4478.7,0.6695]
[1756408006132,3.2078,4479.3,4478.7,1.28015]
[1756408006435,3.2119,4479.3,4479.2,0.6695]
[1756408007035,3.2103,4479.3,4479.2,0.6695]
[1756408007229,3.2078,4479.3,4479.2,0.6695]
[1756408007635,3.2119,4479.3,4479.2,0.6695]
[1756408008035,0.40185,4478.8,4477.9,0.394]
[1756408008340,0.0025,4478.6,4478.5,0.6695]
[1756408008531,0.0025,4478.6,4478.5,0.8975]
[1756408009334,0.0041,4478.6,4478.5,0.8975]
[1756408010936,0.0041,4478.6,4478.5,0.6695]
[1756408011238,0.40195,4477.7,4477.6,0.6695]
[1756408011439,0.40195,4477.7,4477.6,0.8975]
[1756408012737,0.40605,4477.7,4477.6,0.6695]
[1756408013540,0.40445,4477.7,4477.6,0.6695]
[1756408013842,0.40605,4477.7,4477.6,0.6695]
[1756408014236,0.434073,4477.7,4477.6,0.6695]
[1756408014444,0.429973,4477.7,4477.6,0.6695]
[1756408015342,0.434073,4477.7,4477.6,0.6695]
[1756408016143,0.432473,4477.7,4477.6,0.6695]
[1756408016339,0.429973,4477.7,4477.6,0.6695]
[1756408017041,0.028023,4477.7,4477.6,0.6695]
[1756408018339,0.028023,4477.7,4477.6,0.8975]
[1756408018538,0.028023,4477.7,4477.6,0.6695]
[1756408018738,0.028023,4477.7,4477.6,0.8975]
[1756408019337,0.429973,4477.7,4477.6,1.29945]
[1756408019738,0.429973,4477.7,4477.6,0.8975]
[1756408020142,0.028023,4477.7,4477.6,1.29945]
[1756408020344,3.2078,4478.1,4478.0,1.07142]
[1756408020551,0.40186,4478.7,4478.5,0.6695]
[1756408020743,0.40186,4478.7,4478.6,0.6695]
[1756408021248,0.40185,4478.8,4478.7,0.6695]
[1756408021648,1.11365,4478.8,4478.7,0.6695]
[1756408022651,1.11365,4478.8,4478.7,0.8975]
[1756408023357,1.11365,4478.8,4478.7,0.6695]
[1756408024258,0.7118,4478.8,4478.7,0.6695]
[1756408024449,0.2889,4478.8,4478.7,0.6695]
[1756408024652,0.31712721,4478.8,4478.7,0.6695]
[1756408025153,0.02822721,4478.8,4478.7,0.6695]
[1756408026055,3.2078,4479.1,4479.0,0.67313]
[1756408026253,3.2078,4479.1,4479.0,0.9038]
[1756408026455,3.2078,4479.1,4478.8,0.40185]
[1756408026456,0.40183,4479.0,4478.8,0.228]
[1756408026762,0.6763,4478.9,4478.8,0.6758]
[1756408028861,0.6763,4478.9,4478.8,0.2713]
[1756408029056,0.40185,4478.8,4478.7,0.228]
[1756408029262,1.07815,4478.8,4478.7,0.228]
[1756408029459,1.07815,4478.8,4478.7,0.9038]
[1756408031966,1.07815,4478.8,4478.7,0.6758]
[1756408032267,0.6763,4478.5,4478.4,0.6758]
[1756408032468,0.2793,4478.5,4478.4,0.6758]
[1756408032660,0.40187,4478.6,4478.4,0.6758]
[1756408032961,4.28597,4478.6,4478.5,0.6758]
[1756408033165,0.68118,4478.4,4478.3,0.9038]
[1756408033361,1.07818,4478.4,4478.3,0.6758]
[1756408033558,0.2793,4478.0,4477.9,0.2713]
[1756408033757,0.2793,4478.0,4477.9,0.4993]
[1756408033957,0.7989,4478.3,4477.9,0.90123]
[1756408034163,1.0782,4478.3,4478.2,0.2713]
[1756408034465,1.0782,4478.3,4478.2,0.6758]
[1756408034867,0.02842863,4478.3,4478.2,0.6758]
[1756408035769,0.70472863,4478.3,4478.2,0.6758]
[1756408036468,0.30772863,4478.3,4478.2,0.6758]
[1756408037557,0.30772863,4478.3,4478.2,1.0777]
[1756408037763,0.02842863,4478.3,4478.2,1.0777]
[1756408039065,3.2078,4479.1,4479.0,0.40183]
[1756408039264,3.2078,4479.1,4479.0,1.30563]
[1756408039466,3.2078,4479.6,4479.5,0.2713]
[1756408039758,3.4871,4479.6,4479.5,0.6758]
[1756408040358,3.2078,4479.6,4479.5,0.6758]
[1756408041370,3.4871,4479.6,4479.5,0.6758]
[1756408042866,0.397,4479.5,4479.0,0.4045]
[1756408043161,0.397,4479.5,4478.0,2.7884427]
[1756408043162,0.2793,4478.1,4478.0,0.2713]
[1756408043368,0.6763,4478.1,4478.0,0.6758]
[1756408044474,0.2793,4478.1,4478.0,0.6758]
[1756408045271,0.3079315,4478.1,4478.0,0.6758]
[1756408045676,0.7049315,4478.1,4478.0,0.6758]
[1756408046173,0.0286315,4478.1,4478.0,0.6758]
[1756408046369,0.0286315,4478.1,4478.0,4.6758]
[1756408046869,0.0286315,4478.1,4478.0,4.89910999]
[1756408047177,0.0286315,4478.1,4478.0,0.6758]
[1756408047875,3.2078,4479.1,4479.0,0.2713]
[1756408048178,3.2078,4479.1,4479.0,0.9038]
[1756408048875,3.2078,4479.6,4479.5,1.07758]
[1756408049072,3.2078,4479.6,4479.5,1.30558]
[1756408049270,3.4871,4479.6,4479.5,1.30558]
[1756408049476,3.8841,4479.6,4479.5,1.30558]
[1756408051075,3.2078,4481.2,4481.1,0.2713]
[1756408051273,3.2078,4481.7,4481.1,0.62964]
[1756408051575,3.4871,4482.4,4482.3,0.40153]
[1756408051772,0.2793,4482.4,4482.3,0.63053]
[1756408051971,0.397,4482.6,4482.5,0.40151]
[1756408052168,0.6763,4482.6,4482.5,0.40151]
[1756408052374,0.6763,4482.6,4482.5,0.63251]
[1756408052574,0.6763,4482.6,4481.9,0.40157]
[1756408052779,0.6763,4482.3,4482.2,0.40154]
[1756408053178,0.6763,4482.3,4482.0,0.63256]
[1756408053380,0.2793,4482.1,4482.0,0.63256]
[1756408053583,0.6763,4482.1,4482.0,0.63256]
[1756408053973,0.2793,4482.7,4482.0,0.231]
[1756408054280,0.6763,4482.6,4482.5,0.40152]
[1756408054480,0.6763,4482.6,4482.5,0.63252]
[1756408054983,0.6763,4482.6,4482.5,0.231]
[1756408055378,0.397,4482.5,4482.3,0.231]
[1756408055578,0.6763,4481.8,4481.7,0.40158]
[1756408055777,0.6763,4481.8,4481.7,0.231]
[1756408056178,3.4388,4483.0,4481.7,0.2342]
[1756408056381,0.4236,4482.9,4481.7,0.2342]
[1756408056684,0.4236,4482.2,4482.1,0.40985]
[1756408056879,0.2803,4482.6,4482.5,0.40151]
[1756408057083,0.7039,4482.6,4482.5,0.63251]
[1756408057383,0.7039,4482.6,4482.5,0.231]
[1756408057580,0.2803,4482.2,4482.1,3.60935]
[1756408057778,0.2803,4481.5,4481.3,3.2078]
[1756408057982,0.7039,4481.5,4481.4,0.63262]
[1756408058175,0.7039,4481.5,4481.3,3.2078]
[1756408058383,0.2803,4481.5,4481.4,0.231]
[1756408058984,0.7039,4481.5,4481.4,0.2393]
[1756408059386,0.7039,4481.5,4481.4,0.2361]
[1756408059589,0.7039,4481.4,4481.3,3.2078]
[1756408059786,0.7039,4481.4,4481.3,3.4388]
[1756408060890,0.7039,4481.4,4481.3,3.4471]
[1756408061387,3.2078,4482.5,4481.5,0.0032]
[1756408061586,0.4236,4482.3,4481.5,0.0032]
[1756408061782,0.2803,4482.2,4482.1,0.40155]
[1756408061984,0.7039,4482.2,4482.1,0.231]
[1756408062190,0.7039,4482.2,4481.7,0.40159]
[1756408062488,0.7039,4482.2,4481.8,0.231]
[1756408062689,0.7039,4481.9,4481.8,0.63258]
[1756408065594,0.7039,4481.9,4481.8,0.64088]
[1756408066097,0.73295158,4481.9,4481.8,0.64088]
[1756408066593,0.73295158,4481.9,4481.8,0.63768]
[1756408067596,0.73295158,4481.9,4481.8,0.64088]
[1756408067789,0.73295158,4481.9,4481.8,0.40988]
[1756408067994,0.73295158,4481.9,4481.8,0.63988]
[1756408068896,0.73295158,4481.9,4481.8,0.40158]
[1756408069092,0.73295158,4481.9,4481.8,0.63158]
[1756408069396,0.73295158,4481.9,4481.6,0.4016]
[1756408069595,0.73295158,4481.9,4481.7,0.23]
[1756408070099,4.2116,4482.5,4481.7,0.23]
[1756408070100,0.30935158,4481.8,4481.7,0.63159]
[1756408070286,0.73295158,4481.8,4481.7,0.63159]
[1756408072700,0.4236,4482.4,4481.7,4.86302]
[1756408072902,0.4236,4482.8,4482.7,0.4098]
[1756408073199,0.4236,4482.8,4482.7,0.6398]
[1756408073796,0.4236,4483.6,4483.1,0.0032]
[1756408074106,0.7039,4483.5,4483.4,0.40653]
[1756408074702,0.7039,4483.5,4483.4,0.40973]
[1756408075296,0.4236,4483.5,4483.4,0.40973]
[1756408075496,0.7039,4484.0,4483.9,0.40139]
[1756408075704,0.7039,4484.0,4483.9,0.2383]
[1756408076200,0.7039,4483.3,4483.2,3.61435]
[1756408076403,0.7039,4483.3,4483.2,3.84755]
[1756408076609,3.2078,4484.3,4483.2,3.66085]
[1756408076901,0.4236,4484.8,4484.5,0.40134]
[1756408077101,0.82488,4485.3,4484.6,0.23]
[1756408077497,0.2803,4484.7,4484.6,0.2351]
[1756408077715,0.7039,4484.7,4484.6,0.2351]
[1756408077900,0.7039,4484.7,4484.6,0.2383]
[1756408079995,0.2803,4484.7,4484.3,3.2078]
[1756408080198,4.21094,4485.5,4484.3,3.2078]
[1756408080199,0.7039,4484.4,4484.3,3.2078]
[1756408080405,0.7039,4484.4,4484.3,3.4378]
[1756408080698,0.4236,4484.4,4484.3,0.2351]
[1756408080903,0.7039,4485.4,4485.3,0.0051]
[1756408081095,0.7039,4485.4,4485.3,0.23]
[1756408081295,0.4236,4485.4,4485.3,0.2383]
[1756408081502,0.7039,4485.4,4485.3,0.2383]
[1756408081902,0.7039,4485.4,4485.3,0.23]
[1756408082103,0.7039,4484.7,4484.6,3.2078]
[1756408082302,0.2803,4485.2,4485.1,0.40128]
[1756408082505,0.4236,4485.5,4485.4,0.40955]
[1756408082698,0.7039,4485.5,4485.4,0.2393]
[1756408082900,0.2803,4485.1,4485.0,0.0032]
[1756408083104,0.2803,4485.1,4484.9,0.4013]
[1756408083303,0.7039,4485.0,4484.9,0.4013]
[1756408083498,0.40123,4485.8,4484.9,0.6374]
[1756408083822,0.40122,4485.9,4485.5,0.40125]
[1756408084011,0.2803,4485.8,4485.7,0.0051]
[1756408084210,0.7039,4485.8,4485.7,0.40953]
[1756408084911,0.7039,4485.8,4485.7,0.0083]
[1756408085912,3.2078,4486.6,4486.3,0.40117]
[1756408085913,0.2803,4486.4,4486.3,0.40117]
[1756408086214,0.2688,4486.6,4486.5,0.40116]
[1756408086412,0.2688,4486.6,4486.3,0.63217]
[1756408086712,0.6604,4486.4,4486.3,0.63217]
[1756408088119,0.3916,4486.4,4486.3,0.63217]
[1756408088321,0.3916,4486.7,4486.3,0.231]
[1756408088913,0.3916,4486.7,4486.6,0.40116]
[1756408089214,0.6604,4486.7,4486.6,0.40116]
[1756408090020,0.6604,4486.7,4486.6,0.63116]
[1756408092025,3.2078,4487.8,4486.9,1.00281]
[1756408092222,0.2688,4487.8,4487.7,0.40106]
[1756408092515,0.2688,4487.8,4487.7,0.63106]
[1756408092720,0.6604,4487.8,4487.7,0.63106]
[1756408092918,0.6604,4487.8,4487.7,0.23]
[1756408093113,0.6604,4487.8,4486.8,3.2078]
[1756408093114,4.2688,4487.8,4486.8,3.2078]
[1756408093318,0.6604,4487.1,4487.0,0.40112]
[1756408093618,0.6604,4487.1,4487.0,0.63112]
[1756408095118,0.6604,4487.1,4486.8,0.40115]
[1756408095311,0.6604,4487.1,4486.9,0.23]
[1756408095517,0.6604,4487.0,4486.9,0.63113]
[1756408095921,0.2688,4487.0,4486.3,3.2078]
[1756408096218,0.40109,4487.4,4486.3,3.2078]
[1756408096219,0.6604,4486.9,4486.8,0.40114]
[1756408096421,0.6604,4486.9,4486.8,0.63114]
[1756408096916,0.6604,4486.9,4486.8,0.23]
[1756408097821,0.3916,4486.9,4486.8,0.23]
[1756408098021,0.3916,4486.9,4486.8,3.4378]
[1756408098824,0.3916,4486.9,4486.8,3.2078]
[1756408099022,0.40108,4487.6,4486.8,3.4378]
[1756408099326,0.6604,4487.4,4487.3,0.4011]
[1756408099525,0.6604,4487.4,4487.3,0.6311]
[1756408099825,0.6604,4487.4,4487.3,0.23]
[1756408100415,0.6604,4487.4,4487.3,0.6311]
[1756408101827,0.6604,4488.1,4488.0,0.40103]
[1756408106726,0.6604,4488.1,4487.8,3.2078]
[1756408106928,0.6604,4487.9,4487.8,3.60886]
[1756408107126,0.6604,4487.9,4487.8,3.83886]
[1756408108333,1.06145,4487.9,4487.8,0.23]
[1756408108534,0.6604,4487.7,4487.6,0.40107]
[1756408108831,0.3916,4487.7,4487.6,0.63107]
[1756408109434,0.6604,4487.7,4487.6,0.63107]
[1756408110134,0.6604,4488.2,4488.1,0.40103]
[1756408110431,1.06142,4488.2,4488.1,0.23]
[1756408112832,1.06142,4488.2,4488.1,0.63103]
[1756408113225,0.6604,4488.2,4488.1,0.63103]
[1756408113436,0.3916,4488.2,4488.1,0.63103]
[1756408113733,0.6604,4488.2,4488.1,0.63103]
[1756408114330,0.6604,4488.6,4488.5,0.40099]
[1756408114531,1.20208193,4488.6,4488.5,0.40099]
[1756408115136,0.6604,4488.6,4488.5,0.40099]
[1756408116834,0.2688,4488.6,4488.3,3.60881]
[1756408117034,0.6633,4488.4,4487.7,3.2078]
[1756408117231,0.2531,4487.8,4487.7,3.2078]
[1756408117436,0.2531,4487.8,4487.7,3.83787]
[1756408117630,0.6633,4488.1,4488.0,0.40104]
[1756408118438,0.6633,4488.1,4488.0,0.63004]
[1756408118632,0.6633,4488.1,4488.0,0.40104]
[1756408118937,0.6633,4488.1,4488.0,0.63004]
[1756408122339,0.6633,4487.8,4487.7,0.40107]
[1756408122539,0.6633,4487.8,4487.7,0.63007]
[1756408122742,1.0644,4487.3,4487.2,3.2078]
[1756408123041,0.6633,4486.8,4486.7,3.2078]
[1756408123335,0.6633,4486.8,4486.7,4.0799]
[1756408123545,0.4011,4487.4,4486.7,3.823]
[1756408123739,0.6633,4487.0,4486.9,1.04423]
[1756408124042,0.6633,4487.0,4486.9,0.65803]
[1756408124241,0.6633,4487.0,4486.9,0.2569]
[1756408124440,0.2531,4487.0,4486.9,0.2569]
[1756408125033,0.6633,4487.0,4486.9,0.2569]
[1756408125533,0.6633,4487.0,4486.8,0.40114]
[1756408125841,0.6633,4486.8,4486.7,3.86586]
[1756408126138,0.6633,4486.8,4486.7,4.48106]
[1756408127940,0.6633,4486.8,4486.7,3.4368]
[1756408128340,0.6633,4486.6,4486.5,0.40117]
[1756408128636,0.6633,4486.6,4486.5,0.63017]
[1756408129341,0.6633,4486.6,4486.5,1.27327]
[1756408129741,0.6633,4486.6,4486.5,0.8721]
[1756408129942,0.6633,4486.6,4486.5,0.4859]
[1756408130440,0.6633,4486.6,4486.5,0.2569]
[1756408130637,0.6633,4486.6,4486.5,0.4859]
[1756408132144,0.6633,4486.6,4486.5,0.8721]
[1756408132540,0.6633,4486.8,4486.7,0.2569]
[1756408132742,0.6633,4486.8,4486.7,0.6431]
[1756408135442,0.4102,4486.4,4486.3,0.2569]
[1756408135642,0.6633,4486.6,4486.5,0.40117]
[1756408136044,0.2531,4486.4,4486.3,1.27329]
[1756408136342,0.6633,4486.4,4486.3,1.27329]
[1756408136947,0.6633,4486.4,4486.3,1.04429]
[1756408137148,0.6633,4486.4,4486.3,1.27329]
[1756408140549,1.06448,4486.4,4486.2,3.609]
[1756408140844,1.06449,4486.3,4486.2,3.2078]
[1756408141041,1.06449,4486.3,4486.2,3.4358]
[1756408141747,1.06449,4486.3,4486.2,0.228]
[1756408142153,1.06449,4486.3,4486.2,0.8711]
[1756408142850,0.6633,4487.0,4486.9,1.04424]
[1756408143044,0.6633,4487.0,4486.9,1.27224]
[1756408143555,0.4102,4487.5,4487.0,0.3862]
[1756408143748,0.6633,4487.5,4487.4,0.2569]
[1756408144048,0.6633,4487.5,4487.4,0.4859]
[1756408145054,0.6633,4487.5,4487.4,0.229]
[1756408145959,0.6633,4487.5,4487.4,0.8721]
[1756408147452,0.6556,4487.9,4487.8,1.02376]
[1756408147651,0.263,4488.6,4488.5,0.65629]
[1756408147856,0.6556,4488.6,4488.5,1.25169]
[1756408148162,0.6556,4489.1,4489.0,0.6227]
[1756408148457,0.6556,4489.1,4489.0,0.8507]
[1756408148650,3.2078,4489.2,4489.1,0.40094]
[1756408148845,0.3926,4489.7,4489.4,0.65621]
[1756408149054,0.6556,4489.6,4489.5,1.2516]
[1756408151159,0.6556,4489.6,4489.5,0.8507]
[1756408151457,0.1,4490.2,4489.5,0.228]
[1756408151655,0.6556,4489.8,4489.7,1.02358]
[1756408152456,0.263,4489.8,4489.7,1.02358]
[1756408153555,0.6556,4489.8,4489.7,1.02358]
[1756408153859,0.6556,4489.8,4489.7,0.2553]
[1756408155163,0.6556,4489.8,4489.7,0.6227]
[1756408155665,0.6556,4489.8,4489.7,0.2553]
[1756408155860,0.6556,4489.8,4489.7,0.4833]
[1756408156356,0.6556,4489.8,4489.6,0.4009]
[1756408156357,0.40091,4489.5,4489.3,3.2078]
[1756408156560,0.79351,4489.5,4489.4,0.228]
[1756408156758,1.05651,4489.5,4489.4,0.228]
[1756408156960,0.6556,4489.5,4489.4,0.228]
[1756408157263,0.6556,4489.5,4489.4,0.8507]
[1756408157855,0.40086,4490.1,4489.4,0.5954]
[1756408158061,0.6556,4490.0,4489.9,1.02357]
[1756408158261,0.1,4490.2,4490.1,0.40085]
[1756408158564,0.7556,4490.2,4490.1,1.02355]
[1756408159164,0.1,4490.2,4490.1,1.02355]
[1756408162463,0.7556,4490.2,4490.1,1.02355]
[1756408169075,0.263,4489.4,4489.3,3.8305]
[1756408169278,0.6556,4489.4,4489.3,4.45942]
[1756408169976,0.6556,4489.4,4489.3,4.23142]
[1756408170174,0.6556,4489.4,4489.3,4.45942]
[1756408171068,0.6556,4489.4,4489.3,4.09202]
[1756408171271,0.6556,4489.4,4489.3,3.60872]
[1756408171475,0.6556,4489.4,4489.3,3.83672]
[1756408171871,0.6556,4489.4,4489.3,4.09202]
[1756408172173,0.6556,4489.4,4489.3,4.45942]
[1756408173476,0.6556,4489.4,4489.3,4.0585]
[1756408173677,0.6556,4489.4,4489.3,3.8305]
[1756408173868,0.6556,4489.4,4489.3,4.0585]
[1756408174278,0.6556,4489.4,4489.3,4.45942]
[1756408174677,0.6556,4489.4,4489.3,4.23142]
[1756408174980,0.6556,4489.4,4489.3,4.45942]
[1756408174981,0.263,4489.4,4489.3,4.45942]
[1756408175178,0.1,4490.2,4489.3,4.45942]
[1756408175179,0.1,4490.2,4490.1,0.40085]
[1756408175379,0.1,4490.2,4490.1,1.25155]
[1756408176777,0.1,4490.2,4490.1,1.47426]
[1756408176974,0.3826,4491.1,4490.9,0.40077]
[1756408177181,0.6276,4491.1,4491.0,0.7438]
[1756408178280,0.6276,4491.1,4491.0,0.228]
[1756408178682,1.02837,4491.1,4490.9,0.40078]
[1756408178982,0.6276,4490.8,4490.7,0.40079]
[1756408179285,0.6276,4490.8,4490.7,0.62879]
[1756408180183,0.3826,4491.2,4491.1,0.91656]
[1756408180385,0.6276,4491.2,4491.1,1.14456]
[1756408181284,0.6276,4491.2,4491.1,0.4822]
[1756408181586,0.40075,4491.3,4491.0,0.40077]
[1756408181587,0.64576,4491.1,4491.0,0.40077]
[1756408181788,0.6276,4490.5,4490.4,0.5158]
[1756408182085,0.6276,4490.5,4490.4,0.65503]
[1756408182279,0.6276,4490.5,4490.4,0.4822]
[1756408182787,0.6276,4490.5,4490.4,0.7438]
[1756408182992,0.245,4491.2,4491.1,0.40076]
[1756408183288,0.6276,4491.2,4491.1,0.228]
[1756408183890,0.3826,4491.2,4490.7,0.40079]
[1756408184090,0.6276,4490.4,4490.3,0.91664]
[1756408184388,0.6276,4490.4,4490.3,0.88304]
[1756408184789,0.6276,4490.4,4490.3,1.14464]
[1756408184978,0.3826,4490.4,4490.3,1.14464]
[1756408185184,0.6276,4490.4,4490.3,1.14464]
[1756408188091,0.6276,4490.4,4490.3,0.91664]
[1756408188598,0.6276,4490.4,4490.3,1.14464]
[1756408188890,0.6276,4490.4,4490.3,0.40084]
[1756408189192,0.64583,4490.4,4490.3,0.228]
[1756408189586,0.78345,4490.1,4490.0,3.2078]
[1756408189786,0.3826,4490.1,4490.0,4.35246]
[1756408189991,0.6276,4490.1,4490.0,4.35246]
[1756408190691,0.6276,4490.1,4490.0,4.09086]
[1756408191088,0.6276,4490.1,4490.0,4.35246]
[1756408191682,0.6276,4490.1,4490.0,1.14466]
[1756408191893,1.02845,4490.1,4490.0,1.14466]
[1756408192097,0.6276,4490.1,4490.0,1.14466]
[1756408192292,1.02845,4490.1,4490.0,0.7438]
[1756408192489,1.02845,4490.1,4490.0,0.228]
[1756408192892,0.6276,4489.7,4489.6,0.5158]
[1756408193086,0.6276,4489.7,4489.6,0.7438]
[1756408193691,0.6276,4489.7,4489.6,0.9167]
[1756408194090,0.6276,4489.7,4489.6,0.7438]
[1756408194399,0.6276,4489.7,4489.6,0.9167]
[1756408194594,0.6276,4489.7,4489.6,1.1447]
[1756408195196,1.02849,4489.7,4489.6,0.7438]
[1756408195396,0.6276,4489.7,4489.6,1.1447]
[1756408195597,1.02849,4489.7,4489.6,0.5158]
[1756408195798,1.02849,4489.7,4489.6,0.4822]
[1756408196000,1.02849,4489.7,4489.6,0.228]
[1756408196607,1.02851,4489.5,4489.4,3.2078]
[1756408196896,1.02851,4489.5,4489.4,0.228]
[1756408198898,0.245,4489.0,4488.9,3.4694]
[1756408199099,0.6276,4489.0,4488.9,3.9516]
[1756408199298,0.40091,4489.5,4489.3,0.40092]
[1756408199497,0.6276,4489.4,4489.3,0.91672]
[1756408199705,0.6276,4489.4,4489.3,1.14472]
[1756408200409,0.245,4489.1,4488.8,32.094]
[1756408200594,1.02856,4488.9,4488.8,32.094]
[1756408200800,0.40092,4489.4,4488.8,32.322]
[1756408201106,3.2078,4490.0,4489.3,0.91672]
[1756408201402,0.6276,4489.8,4489.7,0.5158]
[1756408201595,3.2078,4490.0,4489.8,0.40088]
[1756408201799,3.2078,4490.0,4489.9,0.5158]
[1756408201995,4.23626,4490.0,4489.8,0.40088]
[1756408202203,0.6276,4489.9,4489.8,0.91668]
[1756408202404,0.6276,4489.9,4489.8,0.5158]
[1756408202600,0.6276,4489.9,4489.8,0.228]
[1756408202800,1.02847,4489.9,4489.8,0.228]
[1756408203202,1.02847,4489.9,4489.8,0.4822]
[1756408203605,1.02847,4489.9,4489.8,0.7438]
[1756408203817,1.02847,4489.9,4489.8,0.228]
[1756408204606,0.6276,4489.5,4489.4,3.87031]
[1756408204800,0.6276,4489.5,4489.4,4.35251]